fUSD/lending_fUSD_20260610
["ID","MTS","AMOUNT","RATE_DAILY","PERIOD"]
[424688872,1781052639000,-150.0,0.00013815,2]
[424688870,1781052639000,-150.0,0.00013809,2]
[424688882,1781052639000,-337.40308297,0.00013836,2]
[424688886,1781052639000,-150.0,0.00013844,2]
[424688890,1781052639000,-150.0,0.00013851,2]
[424688897,1781052639000,-500.0,0.00013851,2]
[424688900,1781052639000,-500.0,0.00013851,2]
[424688907,1781052639000,-500.0,0.00013851,2]
[424688902,1781052639000,-500.0,0.00013851,2]
[424688780,1781052639000,-2000.0,0.00013693,2]
[424688904,1781052639000,-279.46627847,0.00013851,2]
[424688874,1781052639000,-337.40308297,0.00013821,2]
[424688849,1781052639000,-150.0,0.00013773,2]
[424688894,1781052639000,-337.40308297,0.00013851,2]
[424688847,1781052639000,-150.0,0.00013769,2]
[424688837,1781052639000,-33271.7254,0.00013752,2]
[424688792,1781052639000,-500.0,0.00013698,2]
[424688794,1781052639000,-500.0,0.00013698,2]
[424688803,1781052639000,-9999.99,0.00013699,2]
[424688805,1781052639000,-456.0,0.00013699,2]
[424688809,1781052639000,-337.40308297,0.000137,2]
[424688796,1781052639000,-500.0,0.00013698,2]
[424688800,1781052639000,-24481.89,0.00013699,2]
[424688807,1781052639000,-449.0,0.00013699,2]
[424688812,1781052639000,-160.0,0.000137,2]
[424688819,1781052639000,-150.0,0.00013715,2]
[424688798,1781052639000,-200.0,0.00013699,2]
[424688821,1781052639000,-337.40308297,0.00013715,2]
[424688844,1781052639000,-337.40308297,0.0001376,2]
[424688816,1781052639000,-150.0,0.00013702,2]
[424688829,1781052639000,-150.0,0.00013737,2]
[424688823,1781052639000,-150.0,0.00013718,2]
[424688826,1781052639000,-337.40308297,0.0001373,2]
[424688833,1781052639000,-150.0,0.00013747,2]
[424688831,1781052639000,-337.40308297,0.00013745,2]
[424688827,1781052639000,-150.0,0.00013737,2]
[424688814,1781052639000,-150.0,0.00013702,2]
[424688825,1781052639000,-150.0,0.00013722,2]
[424688789,1781052639000,-500.0,0.00013698,2]
[424688985,1781052640000,-500.0,0.00013851,2]
[424688973,1781052640000,-500.0,0.00013851,7]
[424688977,1781052640000,-500.0,0.00013851,2]
[424688964,1781052640000,-500.0,0.00013851,3]
[424688980,1781052640000,-500.0,0.00013851,2]
[424688962,1781052640000,-500.0,0.00013851,2]
[424688982,1781052640000,-500.0,0.00013851,2]
[424688987,1781052640000,-500.0,0.00013851,2]
[424688992,1781052640000,-500.0,0.00013851,2]
[424688989,1781052640000,-500.0,0.00013851,2]
[424689017,1781052640000,-337.40308297,0.00013866,2]
[424689004,1781052640000,-500.0,0.00013858,2]
[424688997,1781052640000,-500.0,0.00013851,2]
[424689006,1781052640000,-500.0,0.00013858,8]
[424689001,1781052640000,-511.65470148,0.00013858,2]
[424688999,1781052640000,-611.64708986,0.00013852,2]
[424689008,1781052640000,-500.0,0.00013858,2]
[424689010,1781052640000,-150.0,0.00013862,2]
[424689013,1781052640000,-150.0,0.00013862,2]
[424689015,1781052640000,-150.0,0.00013862,2]
[424688975,1781052640000,-500.0,0.00013851,2]
[424689024,1781052640000,-337.40308297,0.00013881,2]
[424688994,1781052640000,-500.0,0.00013851,2]
[424688969,1781052640000,-500.0,0.00013851,5]
[424688939,1781052640000,-506.76604741,0.00013851,2]
[424688971,1781052640000,-500.0,0.00013851,6]
[424689022,1781052640000,-150.0,0.0001388,2]
[424688909,1781052640000,-500.0,0.00013851,2]
[424688911,1781052640000,-500.0,0.00013851,2]
[424688913,1781052640000,-500.0,0.00013851,2]
[424688918,1781052640000,-500.0,0.00013851,2]
[424688920,1781052640000,-500.0,0.00013851,2]
[424688916,1781052640000,-500.0,0.00013851,2]
[424688932,1781052640000,-500.0,0.00013851,2]
[424688925,1781052640000,-500.0,0.00013851,2]
[424688928,1781052640000,-500.0,0.00013851,2]
[424688923,1781052640000,-500.0,0.00013851,2]
[424688930,1781052640000,-500.0,0.00013851,2]
[424688934,1781052640000,-500.0,0.00013851,2]
[424688941,1781052640000,-500.0,0.00013851,2]
[424688937,1781052640000,-500.0,0.00013851,2]
[424688944,1781052640000,-500.0,0.00013851,2]
[424688955,1781052640000,-500.0,0.00013851,2]
[424688946,1781052640000,-500.0,0.00013851,2]
[424688948,1781052640000,-500.0,0.00013851,2]
[424688951,1781052640000,-500.0,0.00013851,2]
[424688958,1781052640000,-500.0,0.00013851,2]
[424688953,1781052640000,-500.0,0.00013851,2]
[424688960,1781052640000,-379.24222088,0.00013851,2]
[424688966,1781052640000,-500.0,0.00013851,4]
[424689027,1781052640000,-150.0,0.00013891,2]
[424689121,1781052640000,-500.0,0.00014021,15]
[424689029,1781052640000,-150.0,0.00013896,2]
[424689080,1781052640000,-150.0,0.00013978,2]
[424689083,1781052640000,-150.0,0.00013987,2]
[424689085,1781052640000,-150.0,0.00013987,2]
[424689101,1781052640000,-337.40308297,0.00014017,2]
[424689105,1781052640000,-512.94,0.00014021,2]
[424689107,1781052640000,-500.0,0.00014021,9]
[424689103,1781052640000,-500.0,0.00014021,2]
[424689099,1781052640000,-150.0,0.0001401,2]
[424689119,1781052640000,-500.0,0.00014021,14]
[424689109,1781052640000,-500.0,0.00014021,10]
[424689078,1781052640000,-337.40308297,0.00013972,2]
[424689114,1781052640000,-500.0,0.00014021,12]
[424689123,1781052640000,-500.0,0.00014021,16]
[424689125,1781052640000,-500.0,0.00014021,2]
[424689129,1781052640000,-500.0,0.00014021,2]
[424689136,1781052640000,-500.0,0.00014021,2]
[424689127,1781052640000,-500.0,0.00014021,2]
[424689131,1781052640000,-500.0,0.00014021,2]
[424689138,1781052640000,-500.0,0.00014021,2]
[424689133,1781052640000,-500.0,0.00014021,2]
[424689140,1781052640000,-500.0,0.00014021,2]
[424689019,1781052640000,-150.0,0.00013874,2]
[424689116,1781052640000,-500.0,0.00014021,13]
[424689097,1781052640000,-150.0,0.00014006,2]
[424689112,1781052640000,-500.0,0.00014021,11]
[424689092,1781052640000,-337.40308297,0.00014002,2]
[424689032,1781052640000,-337.40308297,0.00013896,2]
[424689094,1781052640000,-150.0,0.00014003,2]
[424689036,1781052640000,-502.873,0.00013904,2]
[424689041,1781052640000,-337.40308297,0.00013912,2]
[424689043,1781052640000,-150.0,0.00013916,2]
[424689039,1781052640000,-150.0,0.00013909,2]
[424689052,1781052640000,-150.0,0.00013919,2]
[424689047,1781052640000,-19442.30894076,0.00013917,2]
[424689045,1781052640000,-150.0,0.00013916,2]
[424689054,1781052640000,-150.0,0.0001392,2]
[424689050,1781052640000,-500.0,0.00013918,2]
[424689057,1781052640000,-987.4,0.00013922,2]
[424689034,1781052640000,-160.0,0.000139,2]
[424689059,1781052640000,-337.40308297,0.00013927,2]
[424689090,1781052640000,-500.0,0.00014,2]
[424689076,1781052640000,-566.08,0.00013965,2]
[424689069,1781052640000,-150.0,0.00013956,2]
[424689074,1781052640000,-150.0,0.00013965,2]
[424689071,1781052640000,-337.40308297,0.00013957,2]
[424689087,1781052640000,-337.40308297,0.00013987,2]
[424689061,1781052640000,-150.0,0.00013942,2]
[424689063,1781052640000,-150.0,0.00013949,2]
[424689065,1781052640000,-150.0,0.00013952,2]
[424689062,1781052640000,-337.40308297,0.00013942,2]
[424689230,1781052641000,-611.64708986,0.00014139,2]
[424689209,1781052641000,-2714.31966893,0.00014121,2]
[424689218,1781052641000,-150.0,0.00014123,2]
[424689207,1781052641000,-151.93620337,0.00014121,2]
[424689211,1781052641000,-964.99571349,0.00014121,2]
[424689220,1781052641000,-337.40308297,0.00014123,2]
[424689213,1781052641000,-702.61017704,0.00014121,2]
[424689216,1781052641000,-150.0,0.00014122,2]
[424689225,1781052641000,-150.0,0.0001413,2]
[424689227,1781052641000,-337.40308297,0.00014139,2]
[424689223,1781052641000,-150.0,0.0001413,2]
[424689232,1781052641000,-150.0,0.00014143,2]
[424689263,1781052641000,-150.0,0.0001419,2]
[424689244,1781052641000,-150.0,0.00014166,2]
[424689234,1781052641000,-10355.83483875,0.00014145,2]
[424689240,1781052641000,-337.40308297,0.00014154,2]
[424689238,1781052641000,-150.0,0.00014151,2]
[424689236,1781052641000,-150.0,0.00014146,2]
[424689249,1781052641000,-337.40308297,0.00014169,2]
[424689247,1781052641000,-150.0,0.00014169,2]
[424689251,1781052641000,-2000.0,0.00014172,2]
[424689256,1781052641000,-166.66,0.00014178,2]
[424689253,1781052641000,-500.0,0.00014172,2]
[424689200,1781052641000,-160.0,0.000141,2]
[424689242,1781052641000,-1287.57355192,0.00014163,2]
[424689204,1781052641000,-337.40308297,0.00014108,2]
[424689147,1781052641000,-150.0,0.00014033,2]
[424689197,1781052641000,-150.0,0.00014096,2]
[424689144,1781052641000,-150.0,0.00014023,2]
[424689142,1781052641000,-150.0,0.00014023,2]
[424689151,1781052641000,-150.0,0.00014035,2]
[424689156,1781052641000,-150.0,0.0001405,2]
[424689153,1781052641000,-337.40308297,0.00014048,2]
[424689149,1781052641000,-337.40308297,0.00014033,2]
[424689158,1781052641000,-500.0,0.00014051,17]
[424689169,1781052641000,-500.0,0.00014051,2]
[424689167,1781052641000,-500.0,0.00014051,2]
[424689165,1781052641000,-500.0,0.00014051,20]
[424689171,1781052641000,-500.0,0.00014051,2]
[424689202,1781052641000,-150.0,0.00014101,2]
[424689163,1781052641000,-500.0,0.00014051,19]
[424689188,1781052641000,-19442.30894076,0.00014081,2]
[424689184,1781052641000,-150.0,0.00014078,2]
[424689190,1781052641000,-150.0,0.00014093,2]
[424689175,1781052641000,-150.0,0.00014055,2]
[424689178,1781052641000,-150.0,0.00014059,2]
[424689186,1781052641000,-337.40308297,0.00014078,2]
[424689180,1781052641000,-337.40308297,0.00014063,2]
[424689173,1781052641000,-500.0,0.00014051,2]
[424689195,1781052641000,-150.0,0.00014094,2]
[424689193,1781052641000,-337.40308297,0.00014093,2]
[424689258,1781052641000,-150.0,0.00014179,2]
[424689160,1781052641000,-500.0,0.00014051,18]
[424689266,1781052641000,-150.0,0.00014192,2]
[424689182,1781052641000,-150.0,0.00014064,2]
[424689268,1781052641000,-337.40308297,0.00014199,2]
[424689321,1781052641000,-150.0,0.00014295,2]
[424689335,1781052641000,-500.0,0.00014307,21]
[424689342,1781052641000,-500.0,0.00014307,21]
[424689338,1781052641000,-500.0,0.00014307,21]
[424689344,1781052641000,-500.0,0.00014307,21]
[424689333,1781052641000,-500.0,0.00014307,21]
[424689346,1781052641000,-500.0,0.00014307,21]
[424689348,1781052641000,-500.0,0.00014307,21]
[424689350,1781052641000,-500.0,0.00014307,21]
[424689352,1781052641000,-500.0,0.00014307,21]
[424689358,1781052641000,-500.0,0.00014307,21]
[424689356,1781052641000,-500.0,0.00014307,21]
[424689354,1781052641000,-500.0,0.00014307,21]
[424689363,1781052641000,-500.0,0.00014307,21]
[424689367,1781052641000,-500.0,0.00014307,21]
[424689361,1781052641000,-500.0,0.00014307,21]
[424689369,1781052641000,-500.0,0.00014307,21]
[424689365,1781052641000,-500.0,0.00014307,21]
[424689371,1781052641000,-500.0,0.00014307,21]
[424689374,1781052641000,-500.0,0.00014307,21]
[424689380,1781052641000,-500.0,0.00014307,21]
[424689378,1781052641000,-500.0,0.00014307,21]
[424689376,1781052641000,-500.0,0.00014307,21]
[424689382,1781052641000,-500.0,0.00014307,21]
[424689261,1781052641000,-337.40308297,0.00014184,2]
[424689340,1781052641000,-500.0,0.00014307,21]
[424689331,1781052641000,-500.0,0.00014307,21]
[424689385,1781052641000,-500.0,0.00014307,21]
[424689329,1781052641000,-500.0,0.00014307,21]
[424689327,1781052641000,-566.08,0.00014306,2]
[424689272,1781052641000,-150.0,0.00014208,2]
[424689274,1781052641000,-150.0,0.00014214,2]
[424689279,1781052641000,-10355.83483874,0.00014229,2]
[424689283,1781052641000,-150.0,0.00014237,2]
[424689285,1781052641000,-150.0,0.00014237,2]
[424689270,1781052641000,-150.0,0.00014201,2]
[424689292,1781052641000,-150.0,0.00014237,2]
[424689281,1781052641000,-337.40308297,0.00014229,2]
[424689290,1781052641000,-150.0,0.00014237,2]
[424689288,1781052641000,-150.0,0.00014237,2]
[424689294,1781052641000,-150.0,0.00014237,2]
[424689277,1781052641000,-337.40308297,0.00014214,2]
[424689303,1781052641000,-150.0,0.0001426,2]
[424689323,1781052641000,-150.0,0.00014305,2]
[424689325,1781052641000,-337.40308297,0.00014305,2]
[424689301,1781052641000,-433.0,0.00014255,2]
[424689312,1781052641000,-337.40308297,0.00014275,2]
[424689317,1781052641000,-150.0,0.00014284,2]
[424689319,1781052641000,-337.40308297,0.0001429,2]
[424689310,1781052641000,-150.0,0.00014273,2]
[424689308,1781052641000,-150.0,0.00014266,2]
[424689298,1781052641000,-337.40308297,0.00014245,2]
[424689296,1781052641000,-19442.30894076,0.00014244,2]
[424689305,1781052641000,-337.40308297,0.0001426,2]
[424689314,1781052641000,-150.0,0.00014282,2]
[424689470,1781052642000,-337.40308297,0.00014411,2]
[424689469,1781052642000,-150.0,0.0001441,2]
[424689466,1781052642000,-500.0,0.00014407,2]
[424689463,1781052642000,-10355.83483874,0.00014397,2]
[424689452,1781052642000,-150.0,0.0001438,2]
[424689461,1781052642000,-337.40308297,0.00014396,2]
[424689458,1781052642000,-150.0,0.00014396,2]
[424689454,1781052642000,-337.40308297,0.00014381,2]
[424689445,1781052642000,-159.24,0.00014373,2]
[424689456,1781052642000,-150.0,0.00014381,2]
[424689467,1781052642000,-19442.30894076,0.00014408,2]
[424689484,1781052642000,-150.0,0.00014439,2]
[424689473,1781052642000,-150.0,0.00014415,2]
[424689475,1781052642000,-150.0,0.00014419,2]
[424689479,1781052642000,-611.64708986,0.00014426,2]
[424689477,1781052642000,-150.0,0.00014424,2]
[424689486,1781052642000,-500.0,0.00014439,2]
[424689491,1781052642000,-337.40308297,0.00014441,2]
[424689493,1781052642000,-150.0,0.00014451,2]
[424689489,1781052642000,-150.0,0.00014441,2]
[424689498,1781052642000,-200.0,0.00014452,2]
[424689449,1781052642000,-150.0,0.00014377,2]
[424689495,1781052642000,-150.0,0.00014451,2]
[424689482,1781052642000,-337.40308297,0.00014426,2]
[424689447,1781052642000,-150.0,0.00014373,2]
[424689412,1781052642000,-369.26,0.00014307,2]
[424689442,1781052642000,-337.40308297,0.00014366,2]
[424689502,1781052642000,-150.0,0.00014464,2]
[424689389,1781052642000,-500.0,0.00014307,21]
[424689387,1781052642000,-500.0,0.00014307,21]
[424689391,1781052642000,-500.0,0.00014307,21]
[424689394,1781052642000,-500.0,0.00014307,21]
[424689398,1781052642000,-500.0,0.00014307,21]
[424689400,1781052642000,-500.0,0.00014307,21]
[424689405,1781052642000,-252.51072107,0.00014307,21]
[424689403,1781052642000,-500.0,0.00014307,21]
[424689416,1781052642000,-10355.83483874,0.00014313,2]
[424689407,1781052642000,-500.0,0.00014307,2]
[424689396,1781052642000,-500.0,0.00014307,21]
[424689410,1781052642000,-500.0,0.00014307,2]
[424689419,1781052642000,-337.40308297,0.0001432,2]
[424689414,1781052642000,-150.0,0.00014308,2]
[424689423,1781052642000,-150.0,0.00014328,2]
[424689421,1781052642000,-150.0,0.00014323,2]
[424689440,1781052642000,-150.0,0.00014352,2]
[424689430,1781052642000,-150.0,0.00014344,2]
[424689426,1781052642000,-150.0,0.00014331,2]
[424689428,1781052642000,-337.40308297,0.00014335,2]
[424689437,1781052642000,-337.40308297,0.00014351,2]
[424689435,1781052642000,-150.0,0.00014351,2]
[424689433,1781052642000,-150.0,0.00014344,2]
[424689508,1781052642000,-337.40308297,0.00014472,2]
[424689504,1781052642000,-150.0,0.00014468,2]
[424689620,1781052642000,-10355.83483874,0.00014648,2]
[424689572,1781052642000,-150.0,0.00014594,2]
[424689568,1781052642000,-150.0,0.00014583,2]
[424689577,1781052642000,-5482.254725,0.000146,2]
[424689570,1781052642000,-337.40308297,0.00014593,2]
[424689584,1781052642000,-9283.0,0.00014607,5]
[424689588,1781052642000,-337.40308297,0.00014608,2]
[424689581,1781052642000,-250.0,0.00014601,2]
[424689586,1781052642000,-11764.0,0.00014607,5]
[424689579,1781052642000,-150.0,0.000146,2]
[424689590,1781052642000,-200.0,0.00014609,2]
[424689599,1781052642000,-150.0,0.00014623,2]
[424689601,1781052642000,-337.40308297,0.00014623,2]
[424689597,1781052642000,-150.0,0.00014612,2]
[424689595,1781052642000,-150.0,0.00014612,2]
[424689606,1781052642000,-2620.313,0.00014638,2]
[424689604,1781052642000,-150.0,0.00014629,2]
[424689611,1781052642000,-337.40308297,0.00014638,2]
[424689608,1781052642000,-191.864,0.00014638,2]
[424689613,1781052642000,-150.0,0.0001464,2]
[424689615,1781052642000,-150.0,0.00014646,2]
[424689618,1781052642000,-566.08,0.00014647,2]
[424689622,1781052642000,-337.40308297,0.00014653,2]
[424689506,1781052642000,-150.0,0.00014471,2]
[424689574,1781052642000,-1370.563681,0.000146,2]
[424689566,1781052642000,-337.40308297,0.00014578,2]
[424689592,1781052642000,-150.0,0.00014612,2]
[424689563,1781052642000,-150.0,0.00014578,2]
[424689553,1781052642000,-150.0,0.00014558,2]
[424689510,1781052642000,-10355.83483874,0.00014481,2]
[424689512,1781052642000,-150.0,0.00014487,2]
[424689517,1781052642000,-337.40308297,0.00014487,2]
[424689521,1781052642000,-337.40308297,0.00014502,2]
[424689523,1781052642000,-5725.4,0.00014504,2]
[424689519,1781052642000,-150.0,0.00014496,2]
[424689515,1781052642000,-150.0,0.00014487,2]
[424689537,1781052642000,-150.0,0.00014525,2]
[424689534,1781052642000,-150.0,0.00014522,2]
[424689525,1781052642000,-9999.99,0.00014504,2]
[424689539,1781052642000,-150.0,0.00014532,2]
[424689500,1781052642000,-337.40308297,0.00014456,2]
[424689532,1781052642000,-150.0,0.00014518,2]
[424689527,1781052642000,-150.0,0.00014509,2]
[424689557,1781052642000,-10355.83483874,0.00014564,2]
[424689559,1781052642000,-150.0,0.00014565,2]
[424689555,1781052642000,-337.40308297,0.00014562,2]
[424689551,1781052642000,-150.0,0.00014558,2]
[424689561,1781052642000,-19442.30894076,0.00014572,2]
[424689542,1781052642000,-337.40308297,0.00014532,2]
[424689544,1781052642000,-337.40308297,0.00014547,2]
[424689547,1781052642000,-150.0,0.00014554,2]
[424689530,1781052642000,-337.40308297,0.00014517,2]
[424689549,1781052642000,-150.0,0.00014555,2]
[424689704,1781052643000,-337.40308297,0.0001479,2]
[424689690,1781052643000,-200.0,0.00014765,2]
[424689697,1781052643000,-350.0,0.00014775,2]
[424689696,1781052643000,-337.40308297,0.00014774,2]
[424689706,1781052643000,-150.0,0.00014799,2]
[424689708,1781052643000,-159.0,0.000148,2]
[424689700,1781052643000,-150.0,0.00014782,2]
[424689692,1781052643000,-150.0,0.00014772,2]
[424689702,1781052643000,-150.0,0.00014785,2]
[424689710,1781052643000,-150.0,0.00014805,2]
[424689723,1781052643000,-150.0,0.00014808,2]
[424689744,1781052643000,-150.0,0.00014844,2]
[424689725,1781052643000,-150.0,0.00014813,2]
[424689727,1781052643000,-10355.83483874,0.00014816,2]
[424689729,1781052643000,-337.40308297,0.0001482,2]
[424689742,1781052643000,-150.0,0.00014842,2]
[424689750,1781052643000,-500.0,0.00014849,2]
[424689746,1781052643000,-150.0,0.00014846,2]
[424689733,1781052643000,-150.0,0.00014827,2]
[424689748,1781052643000,-500.0,0.00014849,2]
[424689731,1781052643000,-200.0,0.00014822,2]
[424689752,1781052643000,-237316.51759758,0.0001485,2]
[424689693,1781052643000,-150.0,0.00014772,2]
[424689717,1781052643000,-337.40308297,0.00014805,2]
[424689682,1781052643000,-150.0,0.00014737,2]
[424689737,1781052643000,-2000.0,0.0001484,2]
[424689679,1781052643000,-150.0,0.00014737,2]
[424689624,1781052643000,-150.0,0.00014658,2]
[424689629,1781052643000,-150.0,0.00014665,2]
[424689626,1781052643000,-150.0,0.00014665,2]
[424689637,1781052643000,-337.40308297,0.00014668,2]
[424689632,1781052643000,-150.0,0.00014668,2]
[424689640,1781052643000,-150.0,0.00014669,2]
[424689643,1781052643000,-337.40308297,0.00014684,2]
[424689645,1781052643000,-150.0,0.00014691,2]
[424689652,1781052643000,-150.0,0.00014701,2]
[424689647,1781052643000,-150.0,0.00014698,2]
[424689649,1781052643000,-337.40308297,0.00014699,2]
[424689686,1781052643000,-150.0,0.00014756,2]
[424689658,1781052643000,-150.0,0.00014714,2]
[424689656,1781052643000,-611.64708986,0.00014713,2]
[424689662,1781052643000,-337.40308297,0.00014714,2]
[424689665,1781052643000,-166.66,0.00014718,2]
[424689668,1781052643000,-150.0,0.00014727,2]
[424689672,1781052643000,-337.40308297,0.00014729,2]
[424689688,1781052643000,-337.40308297,0.00014759,2]
[424689675,1781052643000,-10355.83483874,0.00014732,2]
[424689677,1781052643000,-19442.30894076,0.00014736,2]
[424689685,1781052643000,-150.0,0.00014752,2]
[424689687,1781052643000,-150.0,0.00014759,2]
[424689684,1781052643000,-337.40308297,0.00014744,2]
[424689654,1781052643000,-150.0,0.00014705,2]
[424689740,1781052643000,-250.0,0.0001484,2]
[424689860,1781052643000,-350.0,0.00014953,2]
[424689754,1781052643000,-2000.0,0.0001485,2]
[424689822,1781052643000,-10000.0,0.000149,2]
[424689820,1781052643000,-5800.0,0.000149,2]
[424689818,1781052643000,-1684.75920606,0.000149,2]
[424689813,1781052643000,-150.0,0.000149,2]
[424689811,1781052643000,-500.0,0.00014899,2]
[424689824,1781052643000,-25000.0,0.000149,3]
[424689826,1781052643000,-19442.30894076,0.000149,2]
[424689828,1781052643000,-1287.57355192,0.000149,2]
[424689830,1781052643000,-21646.75557535,0.000149,3]
[424689832,1781052643000,-10355.83483874,0.000149,2]
[424689835,1781052643000,-4084.0999663,0.000149,2]
[424689837,1781052643000,-5313.79563951,0.000149,2]
[424689847,1781052643000,-337.40308297,0.00014926,2]
[424689841,1781052643000,-337.40308297,0.00014911,2]
[424689852,1781052643000,-150.0,0.00014939,2]
[424689845,1781052643000,-150.0,0.00014918,2]
[424689843,1781052643000,-150.0,0.00014915,2]
[424689849,1781052643000,-150.0,0.00014929,2]
[424689854,1781052643000,-150.0,0.00014941,2]
[424689856,1781052643000,-337.40308297,0.00014941,2]
[424689858,1781052643000,-150.0,0.00014951,2]
[424689862,1781052643000,-337.40308297,0.00014956,2]
[424689735,1781052643000,-337.40308297,0.00014835,2]
[424689815,1781052643000,-464.75513235,0.000149,2]
[424689809,1781052643000,-313.0,0.00014899,2]
[424689839,1781052643000,-540.62899894,0.000149,2]
[424689801,1781052643000,-5800.0,0.00014891,2]
[424689756,1781052643000,-2000.0,0.0001485,2]
[424689807,1781052643000,-337.40308297,0.00014895,2]
[424689758,1781052643000,-2000.0,0.0001485,2]
[424689768,1781052643000,-337.40308297,0.0001485,2]
[424689770,1781052643000,-5800.0,0.00014858,2]
[424689773,1781052643000,-337.40308297,0.00014865,2]
[424689774,1781052643000,-5800.0,0.00014866,2]
[424689760,1781052643000,-2000.0,0.0001485,2]
[424689766,1781052643000,-150.0,0.0001485,2]
[424689764,1781052643000,-2000.0,0.0001485,2]
[424689777,1781052643000,-150.0,0.00014871,2]
[424689783,1781052643000,-200.0,0.00014879,2]
[424689762,1781052643000,-2000.0,0.0001485,2]
[424689795,1781052643000,-25000.0,0.00014882,3]
[424689799,1781052643000,-25000.0,0.00014891,3]
[424689805,1781052643000,-150.0,0.00014895,2]
[424689779,1781052643000,-150.0,0.00014873,2]
[424689803,1781052643000,-150.0,0.00014893,2]
[424689791,1781052643000,-163.0,0.0001488,2]
[424689797,1781052643000,-5800.0,0.00014883,2]
[424689793,1781052643000,-337.40308297,0.0001488,2]
[424689787,1781052643000,-150.0,0.00014879,2]
[424689789,1781052643000,-163.0,0.0001488,2]
[424689781,1781052643000,-5800.0,0.00014874,2]
[424689785,1781052643000,-150.0,0.00014879,2]
[424689945,1781052644000,-500.0,0.00014999,2]
[424689941,1781052644000,-500.0,0.00014999,2]
[424689949,1781052644000,-500.0,0.00014999,2]
[424689939,1781052644000,-500.0,0.00014999,2]
[424689937,1781052644000,-262.91336009,0.00014999,2]
[424689928,1781052644000,-185.02538,0.00014997,2]
[424689933,1781052644000,-210.08366522,0.00014999,10]
[424689930,1781052644000,-336.13386436,0.00014998,10]
[424689924,1781052644000,-12820.0918041,0.00014995,2]
[424689947,1781052644000,-500.0,0.00014999,2]
[424689935,1781052644000,-500.0,0.00014999,2]
[424689943,1781052644000,-500.0,0.00014999,2]
[424689977,1781052644000,-500.0,0.00014999,2]
[424689954,1781052644000,-500.0,0.00014999,2]
[424689958,1781052644000,-500.0,0.00014999,2]
[424689960,1781052644000,-500.0,0.00014999,2]
[424689965,1781052644000,-500.0,0.00014999,2]
[424689971,1781052644000,-500.0,0.00014999,2]
[424689969,1781052644000,-500.0,0.00014999,2]
[424689956,1781052644000,-500.0,0.00014999,2]
[424689967,1781052644000,-500.0,0.00014999,2]
[424689973,1781052644000,-500.0,0.00014999,2]
[424689975,1781052644000,-500.0,0.00014999,2]
[424689979,1781052644000,-500.0,0.00014999,2]
[424689920,1781052644000,-457445.0994231,0.00014995,2]
[424689952,1781052644000,-500.0,0.00014999,2]
[424689922,1781052644000,-621.695063,0.00014995,2]
[424689864,1781052644000,-150.0,0.00014957,2]
[424689926,1781052644000,-262810.2850035,0.00014995,2]
[424689981,1781052644000,-500.0,0.00014999,2]
[424689870,1781052644000,-337.40308297,0.00014971,2]
[424689868,1781052644000,-150.0,0.00014964,2]
[424689866,1781052644000,-8701.0,0.00014959,2]
[424689872,1781052644000,-150.0,0.00014985,2]